bitfinex/quotes_ETHUSD_20240530
["timestamp","ask_amount","ask_price","bid_price","bid_amount"]
[1717093465355,0.1274828,3810.5,3810.4,0.05248261]
[1717093465517,0.1274828,3810.5,3810.3,5.76646]
[1717093465919,0.0930102,3810.5,3810.3,5.76646]
[1717093466421,0.0930102,3810.5,3810.4,35.0]
[1717093470601,0.0930102,3810.5,3810.4,35.786]
[1717093471850,0.0930102,3810.5,3810.4,35.0]
[1717093472188,0.0930102,3810.5,3810.4,35.786]
[1717093472498,0.0930102,3810.5,3810.4,0.786]
[1717093475928,0.0930102,3810.5,3810.3,2.62446]
[1717093476882,0.0930102,3810.5,3810.4,0.786]
[1717093483365,0.0930102,3810.5,3810.4,35.786]
[1717093483743,0.0930102,3810.5,3810.0,2.62466]
[1717093483927,0.0930102,3810.5,3810.0,3.41066]
[1717093484131,0.02340619,3810.4,3810.2,0.786]
[1717093484647,0.0930102,3810.5,3810.2,0.786]
[1717093487756,0.0930102,3810.5,3810.2,3.41047]
[1717093488269,0.02350114,3810.4,3810.2,3.41047]
[1717093488458,0.02350114,3810.4,3810.3,35.0]
[1717093488659,0.0930102,3810.5,3810.4,2.62439]
[1717093489575,0.0930102,3810.5,3810.4,3.41039]
[1717093490768,0.0930102,3810.5,3810.4,2.62439]
[1717093491376,0.11661034,3810.5,3810.4,2.62439]
[1717093491748,0.0930102,3810.5,3810.4,2.62439]
[1717093491949,0.0930102,3810.5,3810.1,2.6246]
[1717093492154,0.11661034,3810.5,3810.1,2.6246]
[1717093492671,0.0930102,3810.5,3810.1,2.6246]
[1717093492836,0.0930102,3810.5,3810.1,2.90819628]
[1717093493265,0.0930102,3810.5,3810.1,2.6246]
[1717093495389,0.0930102,3810.5,3810.2,0.28359635]
[1717093495547,0.0930102,3810.5,3810.1,2.6246]
[1717093495744,0.0930102,3810.5,3810.2,0.28359356]
[1717093496286,0.0930102,3810.5,3810.1,2.6246]
[1717093496287,0.02351823,3810.4,3810.1,2.6246]
[1717093496493,0.0930102,3810.5,3810.2,0.28359522]
[1717093496784,0.0930102,3810.5,3810.1,2.6246]
[1717093496992,0.0930102,3810.5,3810.2,0.28359416]
[1717093497239,0.0930102,3810.5,3810.1,2.6246]
[1717093497581,0.0930102,3810.5,3810.2,0.28359768]
[1717093497781,0.0930102,3810.5,3810.1,2.6246]
[1717093497981,0.0930102,3810.5,3810.2,0.28359555]
[1717093498293,0.0930102,3810.5,3810.1,2.6246]
[1717093502086,0.02383425,3810.4,3809.8,39.20037229]
[1717093502318,0.0930102,3810.5,3809.8,37.6248]
[1717093503418,0.0930102,3810.5,3810.1,2.62459]
[1717093503621,0.0930102,3810.5,3810.0,0.786]
[1717093504310,0.0930102,3810.5,3810.1,0.28359933]
[1717093504618,0.0930102,3810.5,3809.9,2.62469]
[1717093504819,0.0930102,3810.5,3809.9,2.90831097]
[1717093505025,0.0930102,3810.5,3809.9,2.62469]
[1717093505197,0.02393022,3810.4,3809.9,2.62469]
[1717093505812,0.0930102,3810.5,3809.9,2.62469]
[1717093506685,0.0930102,3810.5,3809.9,2.9083062]
[1717093506900,0.0930102,3810.5,3809.9,2.62469]
[1717093507098,0.0930102,3810.5,3809.9,2.9083062]
[1717093507320,0.0930102,3810.5,3809.9,2.62469]
[1717093507516,0.0930102,3810.5,3809.9,2.9083062]
[1717093507825,0.0930102,3810.5,3809.9,2.62469]
[1717093510089,0.02323529,3810.4,3809.9,2.62469]
[1717093510293,0.11624549,3810.4,3810.0,35.0]
[1717093510592,0.0930102,3810.4,3810.0,35.0]
[1717093511740,0.0930102,3810.4,3809.9,2.62469]
[1717093511741,2.4341,3810.3,3809.9,2.62469]
[1717093512035,2.68681102,3810.3,3809.9,37.62469]
[1717093512429,2.5271102,3810.3,3809.9,37.62469]
[1717093512733,2.5271102,3810.3,3809.9,2.62469]
[1717093512934,2.5271102,3810.3,3809.6,0.28363278]
[1717093513140,2.5271102,3810.3,3809.7,35.0]
[1717093513843,2.5271102,3810.3,3809.5,7.25]
[1717093513844,0.786,3810.0,3809.5,7.25]
[1717093514419,0.8790102,3810.0,3809.5,7.25]
[1717093515651,3.5037402,3810.0,3809.5,7.25]
[1717093516015,0.786,3809.8,3809.5,7.25]
[1717093516401,0.0930102,3809.8,3809.5,7.25]
[1717093517933,0.0930102,3809.8,3809.2,35.0]
[1717093520875,0.8790102,3809.8,3809.2,35.0]
[1717093521324,2.2556,3809.5,3809.2,35.0]
[1717093522469,2.3486102,3809.5,3809.2,35.0]
[1717093524271,2.3486102,3809.5,3809.0,0.786]
[1717093524853,2.3486102,3809.5,3809.1,35.0]
[1717093526060,0.0930102,3809.5,3809.1,37.62528]
[1717093530350,0.0930102,3809.5,3809.1,2.62528]
[1717093530876,0.0930102,3809.5,3809.2,35.0]
[1717093532754,0.0930102,3809.5,3809.3,2.62515]
[1717093532959,0.0930102,3809.5,3809.3,3.41115]
[1717093533592,0.0930102,3809.5,3809.4,37.57574905]
[1717093533764,0.04941021,3809.5,3809.4,37.57574905]
[1717093533973,0.04941021,3809.5,3809.4,42.49003744]
[1717093534151,0.04941021,3809.5,3809.4,41.94383769]
[1717093534346,0.04941021,3809.5,3809.4,44.58688715]
[1717093534662,0.04941021,3809.5,3809.4,41.94383769]
[1717093535080,2.62384,3811.2,3809.5,2.62495]
[1717093535394,2.2788,3811.1,3810.4,2.62433]
[1717093535762,2.2788,3811.1,3810.5,35.0]
[1717093536590,3.0648,3811.1,3810.5,35.0]
[1717093536801,0.786,3810.9,3810.5,35.0]
[1717093538675,0.786,3810.7,3810.5,35.0]
[1717093538887,0.786,3810.7,3810.0,9.87461]
[1717093539051,2.2788,3810.6,3810.0,9.87461]
[1717093539392,0.786,3810.5,3810.0,9.87461]
[1717093540095,2.2788,3810.6,3810.0,9.87461]
[1717093541476,2.2788,3810.6,3810.0,2.62461]
[1717093541848,2.2788,3810.6,3810.1,35.0]
[1717093542575,0.786,3810.7,3810.1,35.0]
[1717093544398,0.786,3810.9,3810.1,35.0]
[1717093548701,2.62402,3811.0,3810.1,35.0]
[1717093548913,0.786,3810.7,3810.1,35.0]
[1717093549711,0.55,3810.9,3809.6,7.25]
[1717093549712,2.4886,3810.1,3809.6,7.25]
[1717093549866,3.55,3810.9,3809.0,2.12481039]
[1717093549867,0.786,3809.7,3809.0,7.25]
[1717093550207,2.62503,3809.5,3809.0,7.25]
[1717093550505,0.786,3809.1,3809.0,7.25]
[1717093550665,0.786,3809.1,3808.5,2.62563]
[1717093551206,5.11383,3809.2,3808.3,35.0]
[1717093551373,3.0,3810.3,3808.3,35.0]
[1717093551374,2.4886,3809.9,3808.3,35.0]
[1717093551704,0.786,3809.2,3808.3,35.0]
[1717093552205,2.62498,3809.6,3808.8,0.786]
[1717093553206,2.62471,3810.0,3809.0,0.786]
[1717093553408,2.887181,3810.0,3809.0,0.786]
[1717093553608,2.887181,3810.0,3808.4,2.63969314]
[1717093553609,0.786,3809.9,3808.8,0.786]
[1717093554269,0.786,3809.9,3809.1,2.62524]
[1717093554771,2.62471,3810.0,3809.1,2.62524]
[1717093554970,2.62471,3810.0,3809.2,35.0]
[1717093557690,2.62471,3810.0,3808.5,0.54929334]
[1717093557691,2.62336,3811.9,3809.3,2.2956]
[1717093558015,2.62152,3814.6,3809.3,2.2956]
[1717093558227,0.899,3964.7,3816.0,2.62054]
[1717093558228,5.73854496,3818.6,3816.0,2.62054]
[1717093558374,2.0122713,3820.9,3814.2,0.04563486]
[1717093558375,1.048662,3818.9,3816.8,1.0]
[1717093558579,2.61767,3820.2,3815.0,2.62122]
[1717093558580,1.886,3819.4,3817.5,2.61948]
[1717093558777,1.886,3818.6,3817.5,2.61948]
[1717093559025,0.261767,3820.1,3817.5,2.61948]
[1717093559231,0.261767,3820.1,3815.5,2.85642107]
[1717093559232,0.53430351,3819.4,3816.6,2.6201]
[1717093559378,1.886,3817.6,3816.6,2.6201]
[1717093559580,0.1886,3817.5,3816.6,2.6201]
[1717093559813,0.1886,3817.5,3816.1,3.0]
[1717093559814,4.70243706,3817.5,3816.1,3.0]
[1717093560033,4.70243706,3817.5,3815.7,2.62071]
[1717093560034,1.886,3816.8,3815.7,2.62071]
[1717093560203,0.1886,3817.5,3815.7,2.62071]
[1717093560204,1.886,3816.4,3815.7,2.62071]
[1717093560376,2.61882,3818.6,3815.7,2.62071]
[1717093560377,5.9753264,3816.7,3815.7,2.62071]
[1717093560578,5.9753264,3816.7,3814.6,3.3109]
[1717093560579,3.4673264,3816.4,3815.0,3.0]
[1717093560777,2.508,3816.7,3815.7,2.62071]
[1717093561435,2.32422035,3816.6,3815.7,2.62071]
[1717093561638,2.32422035,3816.6,3815.0,3.0]
[1717093561639,0.48322204,3816.5,3815.0,3.0]
[1717093561813,0.48322204,3816.5,3815.1,3.1711]
[1717093561993,0.48322204,3816.5,3815.2,3.0]
[1717093562511,3.0,3817.1,3815.2,3.0]
[1717093562707,3.0,3817.1,3815.3,2.62101]
[1717093563766,4.29020953,3817.1,3815.3,2.62101]
[1717093564050,3.0,3817.1,3815.3,2.62101]
[1717093564257,3.0,3817.7,3815.3,2.62101]
[1717093564399,0.55,3817.6,3815.3,2.62101]
[1717093565694,0.01731734,3817.5,3815.3,2.62101]
[1717093568312,5.12769,3817.3,3815.3,2.62101]
[1717093568498,2.61986,3817.0,3814.7,2.62143]
[1717093568844,2.508,3816.3,3814.7,2.62143]
[1717093569043,3.0,3816.2,3814.7,2.62143]
[1717093569255,0.55,3816.1,3814.7,2.62143]
[1717093569554,0.55,3816.1,3814.5,7.3]
[1717093569844,0.617044,3816.0,3814.5,7.3]
[1717093570017,0.55,3815.9,3814.5,7.3]
[1717093572544,2.62071,3815.8,3814.5,7.3]
[1717093572731,3.0,3815.7,3814.5,7.3]
[1717093573978,0.617044,3816.0,3814.6,2.62149]
[1717093574254,2.6203,3816.4,3814.6,2.62149]
[1717093574659,2.6203,3816.4,3815.0,2.62119]
[1717093576236,5.61989,3817.0,3815.5,2.62088]
[1717093576429,2.61989,3817.0,3815.5,9.92088]
[1717093576623,2.62012,3816.7,3815.5,9.92088]
[1717093577304,2.62012,3816.7,3815.5,7.3]
[1717093583469,2.62012,3816.7,3815.6,2.6208]
[1717093584756,2.62012,3816.7,3815.5,7.3]
[1717093584930,2.62033,3816.4,3815.5,7.3]
[1717093585267,0.262033,3816.3,3815.5,7.3]
[1717093586133,0.262033,3816.3,3815.8,1.57333607]
[1717093586455,2.508,3816.8,3815.9,0.28322729]
[1717093586661,2.508,3816.8,3816.0,0.28322729]
[1717093586863,0.2508,3816.7,3816.0,0.28322729]
[1717093587060,0.2508,3816.7,3816.1,0.28322729]
[1717093587263,0.2508,3816.7,3816.2,0.28322729]
[1717093587465,0.2508,3816.7,3816.3,0.28322729]
[1717093587709,0.2508,3816.7,3816.4,0.28322729]
[1717093587710,2.62013,3816.6,3816.4,0.28322729]
[1717093587891,0.537893,3816.5,3815.5,7.3]
[1717093588100,2.62013,3816.6,3815.6,0.28321976]
[1717093588313,2.62013,3816.6,3815.7,0.28321976]
[1717093588621,2.62013,3816.6,3815.5,7.3]
[1717093588622,2.62013,3816.6,3815.8,0.28321976]
[1717093588828,0.287093,3816.5,3815.9,0.28321976]
[1717093589021,2.993,3817.1,3816.0,0.28321976]
[1717093589224,3.0,3817.0,3816.1,0.28321976]
[1717093589383,3.0,3817.0,3816.2,0.28321976]
[1717093589585,2.62023,3816.5,3816.3,0.28321976]
[1717093589824,2.62023,3816.5,3816.4,0.28321976]
[1717093590385,2.882253,3816.5,3816.4,0.28321976]
[1717093591026,2.882253,3816.5,3815.5,7.3]
[1717093591193,2.882253,3816.5,3815.6,0.28320481]
[1717093591399,2.882253,3816.5,3815.7,0.28320481]
[1717093591599,2.882253,3816.5,3815.8,0.28320481]
[1717093591785,2.62023,3816.5,3815.9,0.28320481]
[1717093591982,2.62023,3816.5,3816.0,0.28320481]
[1717093592213,2.62023,3816.5,3816.1,0.28319927]
[1717093592413,2.62023,3816.5,3815.5,7.3]
[1717093592414,2.62023,3816.5,3816.2,0.28319927]
[1717093592641,2.62023,3816.5,3816.3,0.28319927]
[1717093592849,2.62023,3816.5,3816.4,0.28319927]
[1717093593059,2.882253,3816.5,3816.4,0.28319927]
[1717093594555,2.62023,3816.5,3816.4,0.28319927]
[1717093596072,2.61991,3817.0,3816.4,0.28319927]
[1717093596369,2.61991,3817.0,3816.5,0.28319927]
[1717093596520,2.61991,3817.0,3816.6,0.28319927]
[1717093596863,2.61991,3817.0,3816.7,0.28319927]
[1717093597024,2.61999,3816.8,3816.7,0.28319927]
[1717093597760,2.61999,3816.8,3816.1,7.3]
[1717093597961,2.61999,3816.8,3816.2,0.28319265]
[1717093598279,2.61999,3816.8,3816.3,0.28319265]
[1717093598456,2.61999,3816.8,3816.4,0.28319265]
[1717093598627,2.9081881,3816.8,3816.5,0.28319265]
[1717093598825,2.61999,3816.8,3816.6,0.28319265]
[1717093599028,2.61999,3816.8,3816.1,7.3]
[1717093599029,2.61999,3816.8,3816.7,0.28318911]
[1717093600371,2.61977,3817.2,3816.7,0.28318911]
[1717093600723,2.61977,3817.2,3816.8,0.28318911]
[1717093600928,2.881362,3817.7,3816.9,0.28318911]
[1717093601127,2.881362,3817.7,3817.0,0.28318911]
[1717093601128,2.61977,3817.2,3817.0,0.28318911]
[1717093601434,2.61977,3817.2,3817.1,0.28318911]
[1717093602020,3.2076062,3817.6,3817.1,0.28318911]
[1717093602251,3.2076062,3817.6,3817.2,2.19441715]
[1717093602486,2.61947,3817.6,3817.3,1.64889608]
[1717093602770,2.61947,3817.6,3817.4,1.64889608]
[1717093602967,2.61947,3817.6,3817.5,0.28318911]
[1717093603261,2.61947,3817.6,3817.5,1.64885213]
[1717093603461,2.61947,3817.6,3817.5,3.46974217]
[1717093603670,2.9076102,3817.6,3817.5,3.46974217]
[1717093603824,2.9076102,3817.6,3817.5,6.13882743]
[1717093604024,2.9076102,3817.6,3817.5,6.13882944]
[1717093604364,2.9076102,3817.6,3817.5,3.46974217]
[1717093605182,2.9076102,3817.6,3817.5,1.82089004]
[1717093605380,2.9076102,3817.6,3817.5,4.56592378]
[1717093606081,2.9076102,3817.6,3817.5,5.04283648]
[1717093606488,2.9076102,3817.6,3817.5,4.56641782]
[1717093607242,2.9076102,3817.6,3817.5,4.292092]
[1717093607692,2.9076102,3817.6,3817.5,6.13946584]
[1717093608055,2.61947,3817.6,3817.5,6.13946584]
[1717093608399,2.61947,3817.6,3817.5,4.29186491]
[1717093608583,2.61947,3817.6,3817.5,1.64889842]
[1717093609293,2.61947,3817.6,3817.5,1.36574978]
[1717093610098,2.61947,3817.6,3817.3,0.54807351]
[1717093610402,2.61972,3817.2,3817.1,0.54807351]
[1717093610684,2.61972,3817.2,3817.1,1.36579838]
[1717093611181,2.61972,3817.2,3816.8,2.12112153]
[1717093611393,2.61972,3817.2,3816.9,1.64895033]
[1717093611559,2.61972,3817.2,3817.0,1.6489447]
[1717093611761,2.61972,3817.2,3816.9,0.54807351]
[1717093611960,2.61972,3817.2,3817.0,1.64891569]
[1717093612184,2.61972,3817.2,3816.6,9.42112153]
[1717093612494,2.61972,3817.2,3816.7,1.64893075]
[1717093612646,2.61985,3817.0,3816.8,1.64893075]
[1717093612851,2.61985,3817.0,3816.7,1.57304802]
[1717093613092,2.61985,3817.0,3816.8,0.28314919]
[1717093613400,2.61985,3817.0,3816.6,7.3]
[1717093617580,2.62018,3816.6,3816.1,7.3]
[1717093617843,2.62018,3816.6,3815.8,5.62063]
[1717093619983,2.62018,3816.6,3815.8,3.0]
[1717093622064,2.62018,3816.6,3815.8,3.28317614]
[1717093622881,0.188,3817.1,3815.7,12.21]
[1717093623123,0.468771,3817.0,3815.7,12.21]
[1717093623453,0.468771,3817.0,3815.6,8.87304802]
[1717093623818,0.468771,3817.0,3815.7,3.2831789]
[1717093624114,0.468771,3817.0,3815.6,7.3]
[1717093624115,2.62047,3816.2,3815.6,7.3]
[1717093626102,2.62061,3815.9,3815.3,1.85623914]
[1717093626403,2.882671,3815.9,3815.3,4.85623914]
[1717093626611,2.62061,3815.9,3815.3,3.28319112]
[1717093627199,2.62061,3815.9,3815.3,3.0]
[1717093627486,2.62061,3815.9,3815.3,3.2832138]
[1717093627698,2.62061,3815.9,3815.3,0.2832138]
[1717093628188,2.62061,3815.9,3815.2,10.9658138]
[1717093628552,2.62061,3815.9,3815.2,10.96581592]
[1717093628853,2.62061,3815.9,3815.2,7.58321592]
[1717093629260,2.62061,3815.9,3815.0,1.85663774]
[1717093629501,2.62061,3815.9,3815.1,0.28321592]
[1717093630300,2.62061,3815.9,3815.0,7.47783774]
[1717093631302,2.62081,3815.7,3815.0,4.85663774]
[1717093631469,2.62081,3815.7,3815.0,1.85663774]
[1717093631669,2.62081,3815.7,3815.0,0.28321592]
[1717093631892,2.62095,3815.5,3815.0,0.28321592]
[1717093632199,2.62095,3815.5,3814.9,19.49]
[1717093633767,2.62109,3815.3,3814.8,7.3]
[1717093633963,2.62122,3815.1,3814.8,7.3]
[1717093634281,2.62122,3815.1,3814.3,1.57342182]
[1717093634477,2.62122,3815.1,3814.3,3.0]
[1717093634798,2.62122,3815.1,3814.3,3.28326446]
[1717093634974,2.62122,3815.1,3814.6,1.049157]
[1717093635173,2.62122,3815.1,3814.4,3.0]
[1717093635389,2.62122,3815.1,3814.3,3.28326446]
[1717093635592,2.62122,3815.1,3814.4,1.049192]
[1717093643094,2.62137,3814.8,3814.4,1.049192]
[1717093643343,2.62137,3814.8,3814.2,7.3]
[1717093643640,2.62137,3814.8,3814.2,8.349251]
[1717093644067,2.62137,3814.8,3814.2,1.049251]
[1717093644217,2.62137,3814.8,3814.0,3.0]
[1717093644545,2.62137,3814.8,3813.9,3.28328779]
[1717093645140,2.62137,3814.8,3814.0,1.049275]
[1717093645317,2.62137,3814.8,3814.0,4.049275]
[1717093645731,2.62137,3814.8,3814.0,1.049275]
[1717093657355,2.62158,3814.5,3814.0,1.049275]
[1717093660749,2.6218,3814.2,3814.0,1.049275]
[1717093662905,2.6218,3814.2,3813.8,7.3]
[1717093663584,1.88,3813.9,3813.8,7.3]
[1717093663804,2.62217,3813.7,3813.0,7.3]
[1717093663961,2.62217,3813.7,3812.8,1.57391988]
[1717093664167,3.072387,3813.7,3812.7,2.90691794]
[1717093664409,3.072387,3813.7,3812.7,1.33299806]
[1717093665470,3.072387,3813.7,3812.7,0.28337506]
[1717093666312,3.072387,3813.7,3812.6,20.559652]
[1717093666614,2.62229,3813.5,3812.6,20.559652]
[1717093667518,2.62229,3813.5,3812.6,8.349652]
[1717093668311,2.62229,3813.5,3812.6,7.3]
[1717093668485,2.62248,3813.2,3812.6,7.3]
[1717093669331,2.62269,3812.9,3812.6,7.3]
[1717093669541,2.62269,3812.9,3812.3,1.04972]
[1717093670870,2.62269,3812.9,3812.0,7.3]
[1717093675170,2.62292,3812.6,3812.0,7.3]
[1717093675387,3.048712,3812.6,3811.7,3.673372]
[1717093675585,3.048712,3812.6,3811.7,2.62347]
[1717093678988,3.048712,3812.6,3811.6,7.3]
[1717093680221,2.62313,3812.3,3811.6,7.3]
[1717093680521,0.785,3811.8,3811.6,7.3]
[1717093680822,0.785,3811.8,3811.3,2.62372]
[1717093681549,0.785,3811.6,3811.2,1.050017]
[1717093681723,0.785,3811.6,3811.0,7.3]
[1717093681724,2.6233,3812.0,3811.0,7.3]
[1717093682034,0.785,3811.7,3811.0,8.3501]
[1717093682396,2.6233,3812.0,3811.0,8.3501]
[1717093682598,2.6233,3812.0,3811.1,2.62387]
[1717093682798,0.785,3811.7,3811.1,2.62387]
[1717093685381,2.6233,3812.0,3811.1,2.62387]
[1717093685496,0.785,3811.8,3811.1,2.62387]
[1717093686047,0.785,3811.6,3811.1,2.62387]
[1717093689355,3.3259,3812.5,3811.5,0.785]
[1717093689647,3.3259,3812.5,3811.0,1.0501]
[1717093689648,3.3843,3813.1,3812.0,2.62326]
[1717093689817,4.1693,3813.1,3812.1,0.0524572]
[1717093690231,0.785,3812.7,3812.1,0.0524572]
[1717093690429,3.3843,3813.1,3812.1,0.0524572]
[1717093690430,0.785,3812.9,3812.1,0.0524572]
[1717093690640,2.62197,3814.0,3812.1,0.0524572]
[1717093690641,3.0992,3813.9,3812.1,0.0524572]
[1717093690822,0.785,3812.9,3812.3,7.3]
[1717093691005,0.785,3812.9,3812.0,2.62326]
[1717093691413,0.785,3812.9,3812.2,2.62314]
[1717093692412,2.62221,3813.6,3812.2,2.62314]
[1717093692612,0.785,3813.0,3812.5,2.62293]
[1717093693302,0.785,3813.0,3812.1,2.62319]
[1717093693500,0.785,3812.8,3812.1,2.62319]
[1717093694379,2.62242,3813.3,3812.1,2.62319]
[1717093694703,0.785,3812.7,3812.1,2.62319]
[1717093695071,0.785,3812.5,3812.1,2.62319]
[1717093696053,0.785,3812.3,3811.9,7.3]
[1717093696287,3.3432,3812.9,3811.9,7.3]
[1717093696288,0.785,3812.0,3811.9,7.3]
[1717093696470,0.785,3812.0,3811.5,1.85859164]
[1717093696704,0.785,3811.8,3811.5,0.28345855]
[1717093696862,0.785,3811.8,3811.3,2.62374]
[1717093697261,0.785,3812.0,3811.3,2.62374]
[1717093697563,0.785,3812.2,3811.3,2.62374]
[1717093697762,0.785,3812.2,3811.3,2.90725351]
[1717093698310,0.785,3812.2,3811.3,4.19887309]
[1717093698605,0.785,3812.0,3811.5,2.62362]
[1717093699369,0.785,3812.2,3811.5,2.90713351]
[1717093699567,0.785,3812.2,3811.5,2.62362]
[1717093700180,0.785,3812.2,3811.5,2.90713351]
[1717093700512,0.785,3812.2,3811.5,2.62362]
[1717093700721,0.785,3812.2,3811.5,2.90713351]
[1717093700894,0.785,3812.2,3811.5,2.62362]
[1717093701094,0.785,3812.0,3811.5,2.62362]
[1717093702227,0.785,3812.0,3811.5,2.90713351]
[1717093702377,0.785,3812.0,3811.5,2.62362]
[1717093703722,0.785,3811.8,3811.5,2.62362]
[1717093704123,0.785,3811.8,3811.3,0.28351351]
[1717093704300,0.785,3811.8,3811.4,2.6237]
[1717093705681,0.288538,3812.2,3811.4,2.6237]
[1717093705682,0.785,3811.6,3811.4,2.6237]
[1717093706694,0.785,3811.8,3811.4,2.6237]
[1717093706892,0.785,3812.0,3811.4,2.6237]
[1717093707309,0.785,3811.8,3811.4,2.6237]
[1717093707799,0.785,3811.6,3811.4,2.6237]
[1717093708608,0.785,3811.8,3811.4,2.6237]
[1717093709962,0.785,3811.8,3811.2,7.3]
[1717093710108,0.785,3811.6,3811.2,7.3]
[1717093712262,0.785,3811.2,3810.7,7.3]
[1717093713685,0.785,3811.0,3810.7,7.3]
[1717093713880,0.785,3811.0,3810.5,1.050229]
[1717093714190,0.785,3810.7,3810.2,2.62446]
[1717093714731,2.886235,3811.2,3809.8,4.48394061]
[1717093714732,0.785,3810.5,3809.8,4.48394061]
[1717093715041,0.785,3810.5,3809.8,3.95877182]
[1717093715240,0.785,3810.3,3809.8,2.62476]
[1717093715497,0.785,3810.1,3809.8,2.62476]
[1717093715773,0.785,3810.1,3809.5,1.050507]
[1717093715943,0.785,3810.1,3809.4,4.20060679]
[1717093716295,0.785,3810.1,3809.4,3.675574]
[1717093716476,0.785,3810.1,3809.4,2.62503]
[1717093716636,0.785,3809.9,3809.4,2.62503]
[1717093716953,0.785,3809.7,3809.4,2.62503]
[1717093717287,3.2964,3809.8,3809.0,2.62532]
[1717093717497,0.785,3809.5,3809.0,2.62532]
[1717093717641,0.785,3809.5,3808.7,1.050709]
[1717093717842,0.785,3809.5,3808.6,2.62559]
[1717093720456,5.92123,3809.8,3808.6,2.62559]
[1717093727878,2.62505,3809.5,3808.6,2.62559]
[1717093728112,3.217195,3809.5,3808.6,2.62559]
[1717093732320,2.62523,3809.2,3808.5,7.3]
[1717093734808,2.62523,3809.2,3808.5,2.62569]
[1717093737319,5.1834,3809.8,3808.5,2.62569]
[1717093737320,2.62501,3809.6,3808.5,2.62569]
[1717093737555,2.62501,3809.6,3808.7,2.62552]
[1717093738478,2.62501,3809.6,3808.6,0.262569]
[1717093739372,4.51201,3809.6,3808.3,2.62581]
[1717093739581,2.62515,3809.3,3808.3,2.62581]
[1717093740631,0.786,3809.1,3808.3,2.62581]
[1717093740979,2.62537,3809.0,3808.3,2.62581]
[1717093741136,2.62537,3809.0,3808.1,7.3]
[1717093741779,2.62537,3809.0,3808.1,7.58373881]
[1717093741991,2.62537,3809.0,3808.1,7.3]
[1717093742596,2.62537,3809.0,3808.1,8.87604394]
[1717093742883,2.62537,3809.0,3808.1,9.15978275]
[1717093743189,2.62537,3809.0,3808.2,1.57604394]
[1717093743360,2.62537,3809.0,3808.3,0.28373881]
[1717093744393,2.62537,3809.0,3808.4,0.28373881]
[1717093744687,2.62537,3809.0,3808.3,1.57604394]
[1717093744886,2.62537,3809.0,3808.4,0.28374184]
[1717093745192,2.62537,3809.0,3808.5,0.28374277]
[1717093745395,2.62537,3809.0,3808.4,1.57604394]
[1717093745561,2.62537,3809.0,3808.5,0.28374174]
[1717093745738,2.62551,3808.8,3808.3,1.57604394]
[1717093745971,2.62551,3808.8,3808.4,0.28374445]
[1717093746379,2.62551,3808.8,3808.2,1.57604394]
[1717093746589,2.62551,3808.8,3808.3,0.28375874]
[1717093746959,0.786,3808.7,3808.4,0.28375735]
[1717093747144,0.786,3808.7,3808.1,8.87642975]
[1717093747145,0.786,3808.7,3808.3,1.57638799]
[1717093747344,0.786,3808.7,3808.4,0.28374985]
[1717093747675,2.62563,3808.6,3808.1,8.87638799]
[1717093748053,2.62563,3808.6,3808.2,0.28375865]
[1717093748246,2.62563,3808.6,3808.3,0.28375865]
[1717093748446,2.62563,3808.6,3808.1,8.87638799]
[1717093748650,2.62563,3808.6,3808.2,0.28375901]
[1717093748995,2.62563,3808.6,3808.3,0.28375901]
[1717093749162,2.62563,3808.6,3808.1,8.87638799]
[1717093749368,2.62563,3808.6,3808.2,0.28375908]
[1717093749572,2.62563,3808.6,3808.3,0.28375908]
[1717093749971,2.62563,3808.6,3808.1,8.87638799]
[1717093750196,2.62563,3808.6,3808.2,0.28375896]
[1717093750377,2.62563,3808.6,3808.3,0.28375896]
[1717093750693,2.62563,3808.6,3808.1,8.87638799]
[1717093751001,2.62563,3808.6,3808.2,0.283759]
[1717093751209,2.62563,3808.6,3808.3,0.283759]
[1717093751500,2.62563,3808.6,3808.1,8.87638799]
[1717093751701,2.62563,3808.6,3808.2,0.28375893]
[1717093751909,2.62563,3808.6,3808.3,0.28375893]
[1717093752112,2.62563,3808.6,3808.1,8.87638799]
[1717093752410,2.62563,3808.6,3808.2,0.28375933]
[1717093752576,2.62563,3808.6,3808.3,0.28375933]
[1717093752781,2.62563,3808.6,3808.1,1.57638799]
[1717093753153,2.62563,3808.6,3808.2,0.28375923]
[1717093753493,2.62563,3808.6,3808.1,1.57638799]
[1717093753817,2.62563,3808.6,3808.2,0.28376031]
[1717093753983,2.62563,3808.6,3808.1,1.57638799]
[1717093754182,2.62563,3808.6,3808.2,0.28376052]
[1717093754395,2.62563,3808.6,3808.1,1.57638799]
[1717093754700,2.62563,3808.6,3808.2,0.28376048]
[1717093755010,2.62563,3808.6,3808.1,1.57638799]
[1717093755185,2.62563,3808.6,3808.2,0.28375984]
[1717093755384,2.62563,3808.6,3808.0,1.57638799]
[1717093755583,2.62563,3808.6,3808.1,0.28375988]
[1717093755784,2.62563,3808.6,3808.2,0.28375988]
[1717093755983,2.62563,3808.6,3808.0,1.57638799]
[1717093756189,0.786,3808.2,3808.1,0.28376052]
[1717093756528,3.41178,3808.4,3808.1,0.28376052]
[1717093756818,3.41178,3808.4,3807.8,1.57638799]
[1717093756969,3.41178,3808.4,3807.9,0.28377787]
[1717093756970,2.62578,3808.4,3807.9,0.28377787]
[1717093757170,2.62578,3808.4,3807.8,1.57638799]
[1717093757519,2.62578,3808.4,3807.9,0.28377923]
[1717093757716,2.62578,3808.4,3807.7,1.57638799]
[1717093757903,2.62578,3808.4,3807.8,0.28378143]
[1717093758107,2.62578,3808.4,3807.9,0.28378143]